bitfinex/quotes_ETHUSD_20241215
["timestamp","ask_amount","ask_price","bid_price","bid_amount"]
[1734291648274,0.05908842,3904.9,3904.3,4.81816145]
[1734291648438,0.05908842,3904.9,3904.4,5.20520598]
[1734291648769,2.66083,3905.0,3904.5,0.88208239]
[1734291648925,2.56088,3904.9,3904.3,3.0]
[1734291649273,0.05843177,3904.8,3904.4,2.20527515]
[1734291649766,2.56088,3904.9,3904.4,2.20527515]
[1734291650446,2.56088,3904.9,3904.2,1.87726991]
[1734291650747,0.1,3905.0,3904.3,5.20471092]
[1734291650951,0.1,3905.6,3904.4,2.20465483]
[1734291651167,0.1,3905.6,3904.5,1.70288437]
[1734291651168,0.05855691,3905.5,3904.5,1.70288437]
[1734291651377,2.56057,3905.4,3904.5,0.821]
[1734291651866,0.0584771,3905.3,3904.5,0.821]
[1734291652026,0.0584771,3905.3,3904.5,1.74647307]
[1734291652221,0.0584771,3905.3,3904.7,0.821]
[1734291652448,0.1,3905.6,3904.8,2.2295365]
[1734291652623,0.1,3905.6,3904.9,0.88158554]
[1734291652855,0.05857621,3905.5,3904.9,0.88158554]
[1734291653063,0.05857621,3905.5,3905.0,0.02560539]
[1734291653353,0.05857621,3905.5,3904.9,0.93368403]
[1734291654364,0.05857621,3905.5,3904.7,3.821]
[1734291654566,0.05857621,3905.5,3904.8,2.20394106]
[1734291654735,0.05857621,3905.5,3904.7,3.821]
[1734291655076,0.05857621,3905.5,3904.8,2.20403333]
[1734291655247,0.05857621,3905.5,3904.9,0.88161333]
[1734291655580,0.05857621,3905.5,3904.7,3.821]
[1734291655774,0.05857621,3905.5,3904.8,2.2042617]
[1734291656387,0.05857621,3905.5,3904.7,0.821]
[1734291657580,0.33047683,3905.5,3904.7,0.821]
[1734291657750,0.1,3905.4,3904.3,1.88086991]
[1734291657950,2.56069,3905.2,3904.4,2.20523655]
[1734291658338,0.05857561,3905.1,3904.4,2.20523655]
[1734291658827,2.56082,3905.0,3904.4,2.20523655]
[1734291659029,0.1,3904.9,3904.3,0.811]
[1734291659282,0.15849578,3904.9,3904.4,0.88226244]
[1734291659460,0.15849578,3904.9,3904.3,0.811]
[1734291659663,0.15849578,3904.9,3904.4,0.88226184]
[1734291659867,0.15849578,3904.9,3904.3,0.811]
[1734291660237,0.15849578,3904.9,3904.4,0.88236967]
[1734291660651,2.71941578,3904.9,3904.1,1.06986991]
[1734291660849,0.43043736,3904.9,3904.2,2.20592215]
[1734291661190,0.43043736,3904.9,3904.1,1.06986991]
[1734291661191,2.56101,3904.7,3904.3,0.88236886]
[1734291661354,2.56101,3904.7,3904.0,1.88086991]
[1734291661551,0.05797597,3904.6,3904.1,2.20627626]
[1734291661757,2.56101,3904.7,3904.2,0.8825105]
[1734291661973,0.05797597,3904.6,3904.0,1.88086991]
[1734291662142,0.05797597,3904.6,3904.1,2.20572208]
[1734291662332,2.56101,3904.7,3904.2,0.88228883]
[1734291662539,0.1,3904.9,3904.0,2.52918796]
[1734291662775,2.66088,3904.9,3904.1,3.27520782]
[1734291663114,2.66088,3904.9,3904.2,2.93935505]
[1734291663266,0.05797388,3904.8,3904.3,0.88214102]
[1734291664089,0.05797388,3904.8,3904.2,0.73401714]
[1734291664296,0.05797388,3904.8,3904.3,2.20589089]
[1734291664478,0.05797388,3904.8,3904.4,0.88235622]
[1734291664677,2.66074,3905.2,3904.4,0.26862433]
[1734291664915,0.05627371,3904.7,3904.2,1.06986991]
[1734291665216,2.66074,3905.2,3904.3,2.20572356]
[1734291665412,2.66074,3905.2,3904.4,2.20572356]
[1734291665718,0.05643338,3905.1,3904.2,1.06986991]
[1734291665917,0.05643338,3905.1,3904.3,2.20615663]
[1734291666232,2.66074,3905.2,3904.4,2.53407673]
[1734291666513,2.66074,3905.2,3904.5,0.88258963]
[1734291666821,0.05643338,3905.1,3904.5,0.88258963]
[1734291666970,0.05643338,3905.1,3904.2,1.06986991]
[1734291667171,0.05643338,3905.1,3904.3,2.20645746]
[1734291667411,0.05335197,3905.1,3904.4,2.20645746]
[1734291668443,0.05335197,3905.1,3904.3,4.10143717]
[1734291668591,0.05335197,3905.1,3904.4,2.20652696]
[1734291668787,0.05335197,3905.1,3904.3,2.77756269]
[1734291668987,0.05335197,3905.1,3904.4,2.20652528]
[1734291669209,0.1,3905.0,3904.4,2.20652528]
[1734291669618,0.05625083,3904.9,3904.5,0.88273097]
[1734291669831,0.05625083,3904.9,3904.3,1.89497971]
[1734291670035,0.05625083,3904.9,3904.4,2.63796043]
[1734291670252,0.05625083,3904.9,3904.5,0.88285256]
[1734291672834,0.05625083,3904.9,3904.4,0.43082903]
[1734291673257,2.66083,3905.0,3904.2,1.06986991]
[1734291673485,0.05621574,3904.8,3904.3,2.20798081]
[1734291673632,0.05621574,3904.8,3904.2,1.06986991]
[1734291673633,0.05625566,3904.9,3904.4,2.20798081]
[1734291673989,0.05621574,3904.8,3904.2,1.06986991]
[1734291674275,0.05621574,3904.8,3904.3,2.20797945]
[1734291674459,2.66083,3905.0,3904.3,2.20808425]
[1734291674665,2.66083,3905.0,3904.4,2.20808425]
[1734291674666,0.05617582,3904.7,3904.4,2.20808425]
[1734291674981,2.56088,3904.9,3904.2,1.06986991]
[1734291675148,2.56088,3904.9,3904.3,2.20803965]
[1734291675344,0.05592164,3904.8,3904.4,2.20803965]
[1734291675536,0.05592164,3904.8,3904.5,0.88321586]
[1734291675736,0.05592164,3904.8,3904.2,1.06986991]
[1734291675936,0.05592164,3904.8,3904.3,2.2080261]
[1734291676150,0.05592164,3904.8,3904.4,2.2080261]
[1734291676381,2.56088,3904.9,3904.5,0.88321044]
[1734291676587,2.56088,3904.9,3904.2,1.06986991]
[1734291676797,2.56088,3904.9,3904.3,2.20832621]
[1734291677089,2.56088,3904.9,3904.4,2.20836909]
[1734291677239,2.56088,3904.9,3904.2,1.06986991]
[1734291677444,2.56088,3904.9,3904.3,2.20862045]
[1734291677680,2.56088,3904.9,3904.4,2.20862045]
[1734291677882,2.56088,3904.9,3904.2,1.71818796]
[1734291678079,2.56088,3904.9,3904.3,2.20872456]
[1734291678291,2.56088,3904.9,3904.4,2.20872456]
[1734291678490,2.56088,3904.9,3904.5,0.88348982]
[1734291678796,0.1,3905.0,3904.2,1.71818796]
[1734291679009,0.1,3905.0,3904.3,0.63204986]
[1734291679187,0.05591331,3904.9,3904.4,0.88358409]
[1734291679351,0.05591331,3904.9,3904.3,3.02729591]
[1734291679352,0.05591331,3904.9,3904.5,0.88358409]
[1734291679698,0.05591331,3904.9,3904.3,1.70191977]
[1734291679999,0.05591331,3904.9,3904.4,2.20930873]
[1734291680318,0.05591331,3904.9,3904.5,0.88372349]
[1734291680451,0.05591331,3904.9,3904.3,1.70191977]
[1734291680652,0.05591331,3904.9,3904.4,2.90474449]
[1734291680864,0.05591331,3904.9,3904.5,2.20948965]
[1734291681170,0.05591331,3904.9,3904.6,0.88379586]
[1734291681384,0.05591331,3904.9,3904.4,1.76512475]
[1734291681601,0.05591331,3904.9,3904.5,2.20956142]
[1734291681806,0.05591331,3904.9,3904.6,0.88382457]
[1734291682009,0.05591331,3904.9,3904.4,1.76512475]
[1734291682315,0.05591331,3904.9,3904.5,2.2095576]
[1734291682483,0.05591331,3904.9,3904.6,2.2095576]
[1734291682679,0.05591331,3904.9,3904.7,0.88382304]
[1734291682865,0.05591331,3904.9,3904.4,1.76512475]
[1734291683066,0.05591331,3904.9,3904.5,2.209638]
[1734291683324,0.05591331,3904.9,3904.6,2.209638]
[1734291683485,0.05591331,3904.9,3904.7,0.8838552]
[1734291683684,0.05591331,3904.9,3904.4,1.76512475]
[1734291683899,0.05591331,3904.9,3904.5,2.20989623]
[1734291684125,0.05591331,3904.9,3904.6,2.20989623]
[1734291684285,0.1,3905.0,3904.7,0.88395849]
[1734291684627,0.1,3905.0,3904.5,1.06986991]
[1734291684824,0.05407416,3904.9,3904.6,2.21013782]
[1734291685122,0.05407416,3904.9,3904.7,0.88405513]
[1734291685427,0.05407416,3904.9,3904.5,1.06986991]
[1734291685719,0.05407416,3904.9,3904.6,2.2103388]
[1734291685921,0.05407416,3904.9,3904.7,0.88413552]
[1734291686093,0.1,3905.0,3904.5,1.06986991]
[1734291686293,0.05403424,3904.8,3904.6,2.21042241]
[1734291686496,0.05407416,3904.9,3904.7,0.88416896]
[1734291686832,0.05403424,3904.8,3904.6,0.55]
[1734291686979,0.05403424,3904.8,3904.7,1.43415713]
[1734291687179,2.56089,3904.9,3904.8,0.55]
[1734291687479,2.61496414,3904.9,3904.8,0.55]
[1734291687887,2.61496414,3904.9,3904.5,0.55]
[1734291688025,2.61496414,3904.9,3904.7,0.55]
[1734291688246,2.61496414,3904.9,3904.5,0.55]
[1734291688521,2.61496414,3904.9,3904.7,0.55]
[1734291688909,2.61496414,3904.9,3904.5,0.55]
[1734291689269,2.61496414,3904.9,3904.7,0.55]
[1734291689557,2.61496414,3904.9,3904.4,0.55]
[1734291689757,2.61496414,3904.9,3904.6,0.55]
[1734291690219,2.61496414,3904.9,3904.4,1.06986991]
[1734291690220,2.61496414,3904.9,3904.5,0.55]
[1734291690426,2.61496414,3904.9,3904.6,0.88395321]
[1734291690622,2.61496414,3904.9,3904.6,0.55]
[1734291690937,2.61496414,3904.9,3904.4,0.55]
[1734291691122,2.61496414,3904.9,3904.6,0.55]
[1734291691700,0.1,3904.7,3904.5,0.55]
[1734291691898,0.1,3904.7,3904.6,1.43396536]
[1734291692726,2.56072,3905.2,3904.7,0.55]
[1734291693929,1.07250362,3905.5,3905.0,0.55]
[1734291694139,0.1,3905.6,3905.0,1.378]
[1734291694649,2.66045,3905.6,3905.0,1.378]
[1734291694852,2.66045,3905.6,3905.2,0.55]
[1734291695145,2.66045,3905.6,3905.0,1.378]
[1734291695304,2.66045,3905.6,3905.1,0.88363801]
[1734291695703,2.66045,3905.6,3905.2,0.55]
[1734291696235,2.66045,3905.6,3905.0,0.828]
[1734291696236,2.66045,3905.6,3905.1,0.55]
[1734291696438,2.66045,3905.6,3905.0,0.828]
[1734291696439,2.66045,3905.6,3905.3,0.55]
[1734291698041,2.66045,3905.6,3905.2,0.1378]
[1734291699767,0.1,3905.6,3905.2,0.1378]
[1734291701111,0.05077982,3905.5,3905.2,0.1378]
[1734291701864,0.05077982,3905.5,3905.3,2.20827301]
[1734291702024,0.05077982,3905.5,3905.3,0.42427051]
[1734291702361,2.56033,3905.8,3905.4,0.88325719]
[1734291702522,2.56033,3905.8,3905.2,0.1378]
[1734291702723,2.56033,3905.8,3905.3,2.20799637]
[1734291703027,2.56033,3905.8,3905.4,0.88319855]
[1734291703373,2.56033,3905.8,3905.0,1.89663207]
[1734291703660,2.56033,3905.8,3905.1,3.62665346]
[1734291703821,2.56033,3905.8,3905.2,2.20806337]
[1734291704021,2.56033,3905.8,3905.3,0.88322535]
[1734291704221,2.56033,3905.8,3905.1,0.34995802]
[1734291704423,2.56033,3905.8,3905.2,2.20782003]
[1734291704636,2.56033,3905.8,3905.1,0.34995802]
[1734291704637,2.56037,3905.7,3905.3,0.88312801]
[1734291704817,2.56037,3905.7,3905.1,0.34995802]
[1734291705024,2.56037,3905.7,3905.2,0.88315945]
[1734291705451,2.56037,3905.7,3905.1,0.34995802]
[1734291706057,2.56037,3905.7,3905.2,0.88313591]
[1734291706224,2.56037,3905.7,3905.1,0.34995802]
[1734291706431,2.56037,3905.7,3905.2,1.10770862]
[1734291706651,2.56037,3905.7,3905.2,0.22465901]
[1734291707680,2.56037,3905.7,3905.3,0.88292085]
[1734291708153,0.1,3905.9,3905.1,0.34995802]
[1734291708358,2.66024,3905.9,3905.2,2.20717758]
[1734291708586,2.66024,3905.9,3905.3,0.88287103]
[1734291708782,2.66024,3905.9,3905.1,1.41859009]
[1734291709002,2.66024,3905.9,3905.2,2.59201902]
[1734291709198,2.66024,3905.9,3905.3,0.88282608]
[1734291709352,0.1,3905.9,3905.3,0.88282608]
[1734291711756,0.1,3905.9,3905.2,0.38495382]
[1734291711994,2.66023,3905.9,3905.2,0.38495382]
[1734291712509,2.66023,3905.9,3905.3,1.11063957]
[1734291712656,2.66023,3905.9,3905.3,0.22815859]
[1734291716106,0.05167133,3905.8,3905.3,0.22815859]
[1734291719682,0.05167133,3905.8,3905.0,1.89663207]
[1734291719884,0.05167133,3905.8,3905.1,2.20563975]
[1734291720211,0.05167133,3905.8,3905.2,0.8822559]
[1734291720394,0.05167133,3905.8,3905.0,1.89663207]
[1734291720590,0.05167133,3905.8,3905.1,2.20565196]
[1734291720815,0.05167133,3905.8,3905.2,0.88226078]
[1734291721665,0.05167133,3905.8,3905.2,1.88559566]
[1734291721870,0.05167133,3905.8,3905.4,0.7606]
[1734291722122,2.56006,3906.2,3905.5,0.88226078]
[1734291722471,0.05182961,3906.1,3905.5,0.88226078]
[1734291722670,2.56006,3906.2,3905.6,0.27114929]
[1734291723002,0.05178972,3906.0,3905.6,0.27114929]
[1734291723317,0.1,3906.3,3905.6,0.27114929]
[1734291723318,0.05174982,3905.9,3905.6,0.27114929]
[1734291723671,0.1,3906.3,3905.6,0.27114929]
[1734291723868,0.05188837,3905.8,3905.7,0.20350842]
[1734291724068,0.1,3906.3,3905.7,0.20350842]
[1734291724373,0.05188837,3905.8,3905.7,0.20350842]
[1734291724573,0.1,3906.3,3905.7,0.20350842]
[1734291725139,0.05204795,3906.2,3905.6,0.27114929]
[1734291725674,0.1,3906.3,3905.6,0.27114929]
[1734291725874,0.05200805,3906.1,3905.6,0.27114929]
[1734291726127,0.1,3906.3,3905.6,0.27114929]
[1734291726469,0.05204795,3906.2,3905.6,0.27114929]
[1734291730925,0.1,3906.5,3905.6,0.27114929]
[1734291731134,0.1,3906.5,3905.7,0.35922993]
[1734291731431,0.05212773,3906.4,3905.7,0.35922993]
[1734291735997,0.05212773,3906.4,3905.8,0.8118]
[1734291738187,0.05212773,3906.4,3905.9,0.88265956]
[1734291739084,2.55973,3906.7,3905.9,0.88265956]
[1734291739281,0.05243016,3906.3,3905.9,0.88265956]
[1734291739526,2.55973,3906.7,3906.0,0.61223216]
[1734291739737,0.05239027,3906.2,3905.8,0.8118]
[1734291739945,2.55973,3906.7,3905.9,0.88279078]
[1734291740089,0.05235038,3906.1,3905.9,0.88279078]
[1734291740427,2.55973,3906.7,3905.9,0.88279078]
[1734291740726,2.55973,3906.7,3906.0,0.88279078]
[1734291740727,0.05254982,3906.6,3906.0,0.88279078]
[1734291740928,0.05254982,3906.6,3905.8,1.88043207]
[1734291741081,0.05254982,3906.6,3905.9,2.20673577]
[1734291741287,0.05254982,3906.6,3906.0,0.88269431]
[1734291741631,0.05254982,3906.6,3905.8,2.9481815]
[1734291741834,0.05254982,3906.6,3905.9,2.20663683]
[1734291742013,0.1,3906.8,3906.0,2.20663683]
[1734291742328,0.1,3906.8,3905.8,2.9481815]
[1734291742538,0.05261384,3906.7,3905.9,3.28080636]
[1734291742704,0.05261384,3906.7,3906.0,2.20662148]
[1734291743026,0.05261384,3906.7,3905.9,1.07418488]
[1734291743328,0.05261384,3906.7,3906.0,2.20654622]
[1734291744232,0.05261384,3906.7,3905.9,1.07418488]
[1734291744398,0.05261384,3906.7,3906.0,1.77000416]
[1734291744604,0.05261384,3906.7,3906.0,0.88741869]
[1734291748041,0.05261384,3906.7,3906.1,0.88258109]
[1734291749404,0.05261384,3906.7,3906.1,1.88591597]
[1734291749622,0.05261384,3906.7,3906.2,1.71267047]
[1734291749822,0.05261384,3906.7,3906.3,0.3603424]
[1734291750025,0.1,3907.2,3906.3,0.3603424]
[1734291750026,0.1,3907.2,3906.4,0.88231933]
[1734291750244,0.05087329,3906.6,3906.4,0.88231933]
[1734291750546,0.1,3907.2,3906.4,0.88231933]
[1734291750697,0.05075341,3906.5,3906.4,0.88231933]
[1734291750896,2.65941,3907.2,3906.4,1.59408356]
[1734291751112,0.05075341,3906.5,3906.4,0.71192287]
[1734291751433,2.65941,3907.2,3906.4,1.59399712]
[1734291751602,2.65941,3907.2,3906.4,0.71192287]
[1734291751810,0.05099268,3907.1,3906.5,0.59454973]
[1734291762329,0.05099268,3907.1,3906.3,0.3603424]
[1734291765164,0.05099268,3907.1,3905.9,1.60006392]
[1734291765165,0.1,3906.4,3905.9,1.06670928]
[1734291765366,0.1,3906.4,3905.5,2.13341856]
[1734291765367,2.56004,3906.2,3905.5,1.06670928]
[1734291765518,2.56004,3906.2,3905.6,0.88262787]
[1734291765715,0.1,3906.4,3905.4,0.7633]
[1734291765716,0.04935117,3906.1,3905.4,0.7633]
[1734291765916,2.56011,3906.1,3905.5,0.88262301]
[1734291766159,2.56011,3906.1,3905.5,1.15388624]
[1734291766355,2.56011,3906.1,3905.5,0.27126323]
[1734291766717,0.04931128,3906.0,3905.5,0.27126323]
[1734291767190,0.04931128,3906.0,3905.6,0.88251765]
[1734291767336,0.04931128,3906.0,3905.6,1.48089667]
[1734291767542,2.55997,3906.3,3905.7,0.88253295]
[1734291767742,2.55997,3906.3,3905.6,0.59837902]
[1734291767743,0.04905445,3905.9,3905.6,0.59837902]
[1734291767953,2.55997,3906.3,3905.6,0.59837902]
[1734291767954,2.55997,3906.3,3905.7,0.88255782]
[1734291768199,0.04901455,3905.8,3905.7,0.88255782]
[1734291768388,2.55997,3906.3,3905.7,0.88255782]
[1734291768538,2.56004,3906.2,3905.7,0.88255782]
[1734291768735,2.60919486,3906.2,3905.5,0.27126323]
[1734291769174,2.60919486,3906.2,3905.6,0.88262289]
[1734291771175,2.60919486,3906.2,3905.5,0.27126323]
[1734291771845,2.60919486,3906.2,3905.6,0.88253583]
[1734291772193,2.60919486,3906.2,3905.5,0.27126323]
[1734291772687,2.60919486,3906.2,3905.6,0.88249938]
[1734291773490,2.60919486,3906.2,3905.5,0.27126323]
[1734291773791,2.60919486,3906.2,3905.6,0.88244165]
[1734291774095,0.04915486,3906.2,3905.6,1.28114655]
[1734291774255,2.6599,3906.4,3905.7,0.88244165]
[1734291774670,0.04916099,3906.3,3905.7,0.88244165]
[1734291774866,2.60915099,3906.3,3905.7,0.88244165]
[1734291775267,2.56007,3906.2,3905.7,0.88244165]
[1734291775482,0.0490812,3906.1,3905.6,0.3987049]
[1734291775667,2.6091912,3906.1,3905.6,0.3987049]
[1734291775854,2.6091912,3906.1,3905.7,0.8823975]
[1734291776052,2.6091912,3906.1,3905.6,0.3987049]
[1734291777293,2.6091912,3906.1,3905.7,0.88239444]
[1734291777660,2.6091912,3906.1,3905.6,0.3987049]
[1734291779002,2.6091912,3906.1,3905.7,0.88238728]
[1734291779500,2.6091912,3906.1,3905.5,0.27126323]
[1734291779653,2.56011,3906.1,3905.6,0.88237283]
[1734291780493,0.04864131,3906.0,3905.6,0.88237283]
[1734291780793,0.04864131,3906.0,3905.6,1.28107085]
[1734291781108,2.55997,3906.3,3905.7,0.88237283]
[1734291781457,2.55997,3906.3,3905.6,0.39869802]
[1734291781658,0.04846559,3906.2,3905.7,0.88212318]
[1734291782186,2.60850559,3906.2,3905.7,0.88212318]
[1734291782802,2.60850559,3906.2,3905.6,0.39869802]
[1734291783023,2.60850559,3906.2,3905.7,0.88217198]
[1734291783346,2.60850559,3906.2,3905.6,0.39869802]
[1734291783521,2.60850559,3906.2,3905.5,3.27126323]
[1734291783723,2.60850559,3906.2,3905.6,0.88219135]
[1734291786115,2.60850559,3906.2,3905.5,3.27126323]
[1734291786318,2.60850559,3906.2,3905.6,2.20515949]
[1734291786529,2.60850559,3906.2,3905.5,3.27126323]
[1734291786530,2.56004,3906.2,3905.7,0.88203469]
[1734291786739,0.04799457,3906.1,3905.5,3.27126323]
[1734291787034,2.56004,3906.2,3905.6,2.81541274]
[1734291787237,2.56004,3906.2,3905.6,0.61046074]
[1734291787390,0.04799457,3906.1,3905.6,0.61046074]
[1734291787593,2.56004,3906.2,3905.6,0.61046074]
[1734291787991,0.04800421,3906.1,3905.6,0.61046074]
[1734291790243,0.04800421,3906.1,3905.4,1.76663488]
[1734291790244,0.04800421,3906.1,3905.4,4.76663488]
[1734291790439,0.1,3906.0,3905.4,0.7633]
[1734291790824,2.60655796,3905.9,3905.4,0.7633]
[1734291791036,2.56029,3905.8,3905.1,0.8083]
[1734291791212,2.56029,3905.8,3905.2,3.88223422]
[1734291791411,2.56029,3905.8,3905.1,3.0]
[1734291791412,0.1,3905.6,3905.1,3.0]
[1734291791632,0.1,3905.6,3905.2,0.88217341]
[1734291792140,0.1,3905.9,3905.2,0.88217341]
[1734291792340,0.04612319,3905.5,3905.3,1.32303444]
[1734291792527,0.04612319,3905.5,3905.2,4.69047341]
[1734291792528,0.1,3905.9,3905.4,0.88217341]
[1734291792729,0.1,3905.9,3905.2,3.8083]
[1734291792730,0.04608328,3905.4,3905.2,3.8083]
[1734291793024,0.1,3905.9,3905.3,2.8676217]
[1734291793384,0.0462429,3905.8,3905.4,0.88200128]
[1734291793538,0.1,3905.9,3905.4,0.88200128]
[1734291793838,0.04620299,3905.7,3905.3,0.6626185]
[1734291793997,0.0462429,3905.8,3905.4,1.61101898]
[1734291794191,3.56315488,3906.6,3905.5,0.88199561]
[1734291794192,0.1,3906.5,3905.5,0.88199561]
[1734291794396,0.04620299,3905.7,3905.5,0.88199561]
[1734291794641,2.56,3906.3,3905.5,0.88199561]
[1734291795012,0.04641694,3906.2,3905.5,0.88199561]
[1734291795347,0.04641694,3906.2,3905.7,0.8083]
[1734291795526,2.56,3906.3,3905.7,0.8083]
[1734291795728,0.04636391,3906.2,3905.7,0.8083]
[1734291796019,2.56,3906.3,3905.7,0.8083]
[1734291796427,0.04636391,3906.2,3905.7,0.8083]
[1734291796622,0.04636391,3906.2,3905.7,1.53583165]
[1734291796838,2.56,3906.3,3905.7,1.53583165]
[1734291797043,2.56,3906.3,3906.1,0.10394069]
[1734291797253,0.04641694,3906.2,3906.1,0.10394069]
[1734291797632,2.56,3906.3,3906.1,0.10394069]
[1734291798147,2.60644694,3906.2,3906.1,0.10394069]
[1734291810231,2.99524561,3906.2,3906.1,0.10394069]
[1734291810591,2.99216349,3906.2,3906.1,0.10394069]
[1734291811190,3.77543756,3906.2,3906.1,0.10394069]
[1734291819733,2.70336482,3906.2,3906.1,0.10394069]
[1734291820354,4.31147393,3906.2,3906.1,0.10394069]
[1734291820554,4.31457368,3906.2,3906.1,0.10394069]
[1734291820927,2.70336482,3906.2,3906.1,0.10394069]
[1734291821126,5.8552464,3906.2,3906.1,0.10394069]
[1734291821345,5.25206108,3906.2,3906.1,0.10394069]
[1734291821552,7.39992721,3906.2,3906.1,0.10394069]
[1734291821756,5.25206108,3906.2,3906.1,0.10394069]
[1734291821959,7.39994487,3906.2,3906.1,0.10394069]
[1734291822374,5.25206108,3906.2,3906.1,0.10394069]
[1734291822671,7.3995318,3906.2,3906.1,0.10394069]
[1734291823357,7.44633777,3906.2,3906.1,6.9e-07]
[1734291823556,5.29886705,3906.2,3906.1,6.9e-07]
[1734291823729,7.98318067,3906.2,3906.1,6.9e-07]
[1734291826374,8.84886705,3906.2,3906.1,6.9e-07]
[1734291828510,0.1,3906.0,3904.5,0.7637]
[1734291828677,2.56108,3904.6,3904.5,0.7637]
[1734291828999,2.60421179,3904.6,3904.5,0.7637]
[1734291832951,0.04313179,3904.6,3904.5,0.7637]
[1734291833141,2.56095,3904.8,3904.5,0.7637]
[1734291833347,8.0,3912.5,3904.5,0.7637]
[1734291833348,0.0430112,3904.6,3904.5,0.7637]
[1734291833541,2.5608,3905.1,3904.5,1.24040349]
[1734291833873,2.5608,3905.1,3904.6,0.7637]
[1734291834546,2.58419608,3905.1,3904.6,0.7637]
[1734291835978,0.04275651,3905.0,3904.6,0.7637]
[1734291839245,2.60359651,3905.0,3904.6,0.7637]
[1734291840431,2.60359651,3905.0,3904.6,0.94040349]
[1734291841754,0.04275651,3905.0,3904.6,0.94040349]
[1734291842052,0.02339608,3905.1,3904.6,0.94040349]
[1734291842409,0.04264467,3905.0,3904.6,0.94040349]
[1734291850088,0.04264467,3905.0,3904.8,3.8271]
[1734291850404,0.02339608,3905.1,3904.9,7.84798817]
[1734291850693,0.02339608,3905.1,3905.0,7.03525395]
[1734291851037,0.02339608,3905.1,3905.0,8.10196323]
[1734291852505,0.02339608,3905.1,3905.0,9.59606395]
[1734291852796,2.56006,3906.2,3905.1,0.7713]
[1734291853001,2.56006,3906.2,3905.3,0.7713]
[1734291853284,2.56006,3906.2,3905.5,0.7713]
[1734291854779,2.56016,3906.0,3905.5,0.7713]
[1734291856249,1.00333488,3906.5,3905.5,0.7713]
[1734291856250,2.56035,3905.8,3905.5,0.7713]
[1734291858986,2.56036,3905.7,3905.5,0.7713]
[1734291861628,2.56022,3906.0,3905.5,0.7713]
[1734291861784,2.56023,3905.9,3905.5,0.7713]
[1734291866224,0.04370188,3905.8,3905.5,0.7713]
[1734291867224,2.60399188,3905.8,3905.5,0.7713]
[1734291871000,2.56036,3905.7,3905.5,0.7713]
[1734291871201,0.04361243,3905.6,3905.5,0.7713]
[1734291874545,0.04361243,3905.6,3905.0,0.8251]
[1734291874842,2.56058,3905.4,3905.0,0.8251]
[1734291875351,0.04344449,3905.3,3905.1,0.88245693]
[1734291875705,2.5605,3905.5,3905.1,0.88245693]
[1734291876046,0.04202793,3905.4,3905.0,0.8251]
[1734291876348,0.04202793,3905.4,3905.1,1.11002383]
[1734291876553,0.04202793,3905.4,3905.1,0.22761385]
[1734291877044,2.60258793,3905.4,3905.1,0.22761385]
[1734291878552,2.60258793,3905.4,3905.0,0.8251]
[1734291878952,0.04202793,3905.4,3905.0,0.8251]
[1734291879172,2.56075,3905.1,3904.7,1.87438933]
[1734291879306,2.56075,3905.1,3904.7,0.808]
[1734291879506,0.0418731,3905.0,3904.8,2.20737726]
[1734291879714,0.0418731,3905.0,3904.9,0.8829509]
[1734291880050,0.0418731,3905.0,3904.8,0.8829509]
[1734291880423,0.0418731,3905.0,3904.8,2.20741011]
[1734291880620,2.56075,3905.1,3904.8,2.20741011]
[1734291881553,0.1,3905.4,3904.8,2.20741011]
[1734291881754,0.1,3905.4,3904.7,0.808]
[1734291881909,2.56088,3904.9,3904.7,0.808]
[1734291882252,0.04155213,3904.8,3904.7,0.808]
[1734291883760,2.56075,3905.1,3904.7,0.808]
[1734291884147,2.60109126,3905.0,3904.7,0.808]
[1734291886152,0.04027126,3905.0,3904.7,0.808]
[1734291886352,2.56067,3905.3,3904.8,2.69494474]
[1734291886576,2.56067,3905.3,3904.9,0.8830182]
[1734291886889,0.0402305,3905.2,3904.9,0.8830182]
[1734291887285,2.56067,3905.3,3904.9,0.8830182]
[1734291887775,0.0402305,3905.2,3904.9,0.8830182]
[1734291887975,2.56067,3905.3,3904.9,0.8830182]
[1734291888182,0.0402305,3905.2,3904.9,0.8830182]
[1734291888504,2.56067,3905.3,3904.9,0.8830182]
[1734291888666,0.04019059,3905.1,3904.9,0.8830182]
[1734291888873,2.5607,3905.2,3904.8,0.48743893]
[1734291889182,0.03903812,3905.1,3904.7,0.808]
[1734291892998,2.59979812,3905.1,3904.7,0.808]
[1734291894382,0.03903812,3905.1,3904.8,0.88321855]
[1734291894781,0.03890176,3905.0,3904.8,0.88321855]
[1734291894981,2.56061,3905.4,3904.8,1.15897934]
[1734291895212,2.5996415,3905.3,3904.9,0.88312631]
[1734291895422,2.5996415,3905.3,3904.7,0.808]
[1734291895607,2.5996415,3905.3,3904.8,2.20791125]
[1734291895937,2.5996415,3905.3,3904.7,0.808]
[1734291896141,2.5996415,3905.3,3904.8,2.20792981]
[1734291897802,2.5996415,3905.3,3904.7,0.808]
[1734291897998,2.5996415,3905.3,3904.8,0.88318125]
[1734291900315,2.5996415,3905.3,3904.7,0.808]
[1734291900316,2.5996415,3905.3,3904.9,0.88318125]
[1734291900646,2.5996415,3905.3,3904.7,1.87438933]
[1734291900832,2.5996415,3905.3,3904.8,2.20813935]
[1734291901037,2.5996415,3905.3,3904.9,0.88325574]
[1734291901355,2.5996415,3905.3,3904.7,2.62216814]
[1734291901512,2.5996415,3905.3,3904.8,2.2080921]
[1734291901716,2.5996415,3905.3,3904.9,0.88323684]
[1734291901923,2.5996415,3905.3,3904.7,2.62216814]
[1734291902242,2.5996415,3905.3,3904.8,2.20805662]
[1734291902410,2.5996415,3905.3,3904.9,0.88322265]
[1734291902628,2.5996415,3905.3,3904.7,2.62216814]
[1734291902812,2.5996415,3905.3,3904.8,2.20821175]
[1734291903133,2.5996415,3905.3,3904.9,0.8832847]
[1734291903304,2.5996415,3905.3,3904.7,2.62216814]
[1734291903505,2.5996415,3905.3,3904.8,2.2083455]
[1734291903705,2.5996415,3905.3,3904.9,0.8833382]
[1734291903907,2.5996415,3905.3,3904.7,0.808]
[1734291904102,2.5996415,3905.3,3904.8,2.20826932]
[1734291904404,2.5996415,3905.3,3904.9,0.88330773]
[1734291904734,2.5996415,3905.3,3904.7,0.808]
[1734291904919,2.5996415,3905.3,3904.8,2.20819032]
[1734291905239,2.5996415,3905.3,3904.7,0.808]
[1734291905441,0.1,3905.2,3904.8,0.88339095]
[1734291905652,2.56096,3904.8,3904.4,1.06638933]